[Event "Khanty-Mansiysk FIDE GP (Women)"]
[Site "Khanty-Mansiysk"]
[Date "2014.04.11"]
[Round "3"]
[White "Ushenina, Anna"]
[Black "Kosteniuk, Alexandra"]
[Result "1/2-1/2"]
[ECO "D58"]
[WhiteElo "2501"]
[BlackElo "2527"]
[Annotator "ChessBase Website"]
[PlyCount "135"]
[EventDate "2014.04.09"]
[EventType "tourn"]
[EventRounds "11"]
[EventCountry "RUS"]
[EventCategory "10"]
[SourceTitle "CBM 160"]
[Source "ChessBase"]
[SourceDate "2014.05.15"]
[SourceVersion "1"]
[SourceVersionDate "2014.05.15"]
[SourceQuality "1"]
[TimeControl "40/5400+30:1800+30"]
[WhiteClock "1:30:00"]
[BlackClock "1:30:00"]

1. d4 {[%emt 0:00:00]} Nf6 {[%emt 0:00:00]} 2. c4 {[%emt 0:00:00]} e6 {[%emt 0:
00:00]} 3. Nc3 {[%emt 0:00:18]} d5 {[%emt 0:00:00]} 4. Bg5 {[%emt 0:01:00]} Be7
{[%emt 0:00:43]} 5. e3 {[%emt 0:00:58]} O-O {[%emt 0:03:46]} 6. Nf3 {[%emt 0:
01:32]} h6 {[%emt 0:01:01]} 7. Bh4 {[%emt 0:00:28]} b6 {[%emt 0:00:44]} 8. Be2
{[%emt 0:01:25]} dxc4 {[%emt 0:00:33]} 9. Bxc4 {[%emt 0:00:21]} Bb7 {[%emt 0:
00:17]} 10. O-O {[%emt 0:00:19]} Nbd7 {[%emt 0:01:13]} 11. Qe2 {[%emt 0:00:20]}
a6 {[%emt 0:00:32]} 12. Rfd1 {[%emt 0:01:08]} b5 {[%emt 0:04:03]} (12... Nd5
13. Bg3 Nxc3 14. bxc3 Bd6 15. e4 Bxg3 16. hxg3 b5 17. Bd3 Nb6 18. Qe3 Na4 19.
Bc2 Nb2 20. Rdb1 Nc4 21. Qc1 c5 22. a4 cxd4 23. cxd4 Rc8 24. axb5 axb5 25. Qe1
Bc6 26. Rb4 Ra8 27. Rd1 Ra3 28. d5 exd5 29. exd5 Re8 30. dxc6 Rxe1+ 31. Nxe1
Qc7 32. Rxb5 g6 33. Rc5 Ne5 34. Be4 Ng4 35. Nd3 Kg7 36. Bf3 Nf6 37. Nb4 h5 38.
Rdc1 Ra7 39. Nd5 Nxd5 40. Bxd5 Qd8 41. c7 Rxc7 42. Rxc7 {Kramnik,V (2784)
-Andreikin,D (2716) Tromsoe 2013 1-0 (63)}) 13. Bd3 {[%emt 0:00:23]} Qe8 {
[%emt 0:01:15]} 14. a4 {[%emt 0:04:48]} b4 {[%emt 0:06:09]} 15. Nb1 {[%emt 0:
00:42]} c5 {[%emt 0:03:18]} 16. Nbd2 {[%emt 0:00:52]} cxd4 {[%emt 0:02:31]} 17.
exd4 {[%emt 0:00:41]} Nh5 {[%emt 0:08:58][%cal Gh5f4]} 18. Bg3 {[%emt 0:03:21]}
Nb6 {[%emt 0:05:56]} 19. a5 {[%emt 0:11:53]} Nd5 {[%emt 0:01:50]} 20. Qe4 {
[%emt 0:11:07]} g6 {[%emt 0:11:11]} 21. Be5 {[%emt 0:03:57]} Ra7 {[%emt 0:03:
01]} 22. Qe1 {[%emt 0:02:38]} Qa8 {[%emt 0:11:15]} 23. Bf1 {[%emt 0:19:54]} Kh7
{[%emt 0:04:56]} 24. Nc4 {[%emt 0:03:00]} Qd8 {[%emt 0:02:32]} 25. Nfd2 {
[%emt 0:07:03]} f6 {[%emt 0:04:26]} 26. Bg3 {[%emt 0:00:40]} Ndf4 {[%emt 0:03:
37]} 27. Qe3 {[%emt 0:01:34]} Qb8 {[%emt 0:12:26]} 28. Nb3 {[%emt 0:04:45]} Re8
{[%emt 0:02:39]} 29. Rac1 {[%emt 0:02:54]} Bf8 {[%emt 0:00:19]} 30. Nb6 $16 {
[%emt 0:08:02][%csl Ra7,Gb6,Rf4,Rh5] The Orthodox variation of the Queen's
Gambit Declined is usually a quiet and positional affair. This game definitely
did not go that way and the position was very messy for many moves. Ushenina's
positional pressure seemed to hinder Kosteniuk's attempts to attack the
kingside and it seems that the Ukrainian must have had a winning shot at some
point or another, exploiting the awkward placement of Black's knights. However
she missed her opportunity and the game ended in a dramatic draw.} Nxg3 {
[%emt 0:00:43]} 31. hxg3 {[%emt 0:00:36]} Nd5 {[%emt 0:00:09]} 32. Nxd5 {
[%emt 0:07:08]} Bxd5 {[%emt 0:00:01]} 33. Bc4 {[%emt 0:00:28]} Qa8 {[%emt 0:03:
05]} 34. Bxd5 {[%emt 0:01:01]} Qxd5 {[%emt 0:00:01]} 35. Rd2 {[%emt 0:00:47]}
h5 {[%emt 0:00:18]} 36. Rdc2 {[%emt 0:00:30]} Bh6 {[%emt 0:00:16]} 37. f4 {
[%emt 0:00:26]} Rg7 {[%emt 0:02:56]} 38. Rc5 {[%emt 0:00:17]} Qd8 {[%emt 0:00:
43]} 39. Qe4 {[%emt 0:00:47]} e5 {[%emt 0:01:18]} 40. dxe5 {[%emt 0:00:00]}
fxe5 {[%emt 0:00:00]} 41. Re1 {[%emt 0:13:13]} h4 {[%emt 0:01:38]} 42. Rxe5 {
[%emt 0:04:34]} Rxe5 {[%emt 0:00:20]} 43. fxe5 {[%emt 0:00:06]} hxg3 {[%emt 0:
00:07]} 44. Nd4 {[%emt 0:04:40]} Qxa5 {[%emt 0:02:27]} 45. Nf3 {[%emt 0:01:54]}
Qc5+ {[%emt 0:03:07]} 46. Kh1 {[%emt 0:00:15]} a5 {[%emt 0:02:04]} 47. Qh4 {
[%emt 0:02:29]} Qe7 {[%emt 0:04:26]} 48. Qxg3 {[%emt 0:00:46]} a4 {[%emt 0:00:
22]} 49. e6 {[%emt 0:00:40]} a3 {[%emt 0:00:10]} 50. bxa3 {[%emt 0:00:19]} bxa3
{[%emt 0:00:02]} 51. Qe5 {[%emt 0:00:49]} a2 {[%emt 0:04:16]} 52. Qb2 {[%emt 0:
03:25]} Qa7 {[%emt 0:06:36]} 53. Ra1 {[%emt 0:00:29]} Rc7 {[%emt 0:02:41]} 54.
e7 {[%emt 0:03:28]} Rxe7 {[%emt 0:00:16]} 55. Qxa2 {[%emt 0:00:05]} Qc5 {
[%emt 0:01:37]} 56. Qa5 {[%emt 0:00:24]} Qxa5 {[%emt 0:02:20]} 57. Rxa5 {
[%emt 0:00:02]} Bf4 {[%emt 0:00:06]} 58. Kg1 {[%emt 0:00:45]} Re2 {[%emt 0:00:
17]} 59. Kf1 {[%emt 0:01:05]} Rb2 {[%emt 0:00:16]} 60. Ng5+ {[%emt 0:01:06]}
Kh6 {[%emt 0:00:50]} 61. Ne4 {[%emt 0:00:12]} g5 {[%emt 0:00:15]} 62. g3 {
[%emt 0:00:20]} Be3 {[%emt 0:00:09]} 63. Ra6+ {[%emt 0:00:46]} Kg7 {[%emt 0:00:
26]} 64. Ra3 {[%emt 0:00:14]} Bc1 {[%emt 0:00:17]} 65. Rc3 {[%emt 0:00:11]} Bd2
{[%emt 0:00:10]} 66. Rd3 {[%emt 0:00:34]} Bc1 {[%emt 0:00:05]} 67. Rc3 {
[%emt 0:00:08]} Bd2 {[%emt 0:00:04]} 68. Rd3 {[%emt 0:00:09]} 1/2-1/2

[Event "Khanty-Mansiysk FIDE GP (Women)"]
[Site "Khanty-Mansiysk"]
[Date "2014.04.12"]
[Round "4"]
[White "Kosteniuk, Alexandra"]
[Black "Batchimeg, Tuvshintugs"]
[Result "1-0"]
[ECO "C65"]
[WhiteElo "2527"]
[BlackElo "2340"]
[Annotator "ChessBase Website"]
[PlyCount "93"]
[EventDate "2014.04.09"]
[EventType "tourn"]
[EventRounds "11"]
[EventCountry "RUS"]
[EventCategory "10"]
[SourceTitle "CBM 160"]
[Source "ChessBase"]
[SourceDate "2014.05.15"]
[SourceVersion "1"]
[SourceVersionDate "2014.05.15"]
[SourceQuality "1"]
[TimeControl "40/5400+30:1800+30"]
[WhiteClock "1:30:00"]
[BlackClock "1:30:00"]

1. e4 {[%emt 0:00:00]} e5 {[%emt 0:00:00]} 2. Nf3 {[%emt 0:00:00]} Nc6 {
[%emt 0:00:00]} 3. Bb5 {[%emt 0:00:00]} Nf6 {[%emt 0:00:08]} 4. d3 {[%emt 0:00:
17]} Bc5 {[%emt 0:00:14]} 5. O-O {[%emt 0:00:26]} Nd4 {[%emt 0:01:49]} 6. Nxd4
{[%emt 0:00:21]} Bxd4 {[%emt 0:00:02]} 7. Nd2 {[%emt 0:00:52]} (7. c3 Bb6 8.
Na3 c6 9. Ba4 O-O 10. Bg5 h6 11. Bh4 d5 12. exd5 cxd5 13. Bb3 g5 14. Bg3 Re8
15. Re1 Bc7 16. Nc2 Bg4 17. Qd2 d4 18. h3 Bf5 19. Ba4 Bd7 20. Bxd7 dxc3 21.
Qxc3 Nxd7 22. d4 Rc8 23. Qb3 Ba5 24. Re2 exd4 25. Rxe8+ Qxe8 26. Nxd4 Nc5 27.
Qf3 Qe4 28. Nf5 Qxf3 29. gxf3 Rd8 30. Nxh6+ Kg7 31. Nf5+ Kg6 32. Nd6 Bb6 33.
Nc4 Ne6 34. Re1 Bd4 35. b3 Rd5 36. Kf1 Bc5 {Topalov,V (2785)-Andreikin,D (2709)
Khanty-Mansiysk 2014 1/2-1/2 (69)}) 7... c6 {[%emt 0:01:21]} 8. Ba4 {[%emt 0:
00:14]} d6 {[%emt 0:00:38]} 9. c3 {[%emt 0:00:16]} Bb6 {[%emt 0:00:14]} 10. Bb3
{[%emt 0:00:19]} h6 {[%emt 0:10:05]} 11. Nc4 {[%emt 0:01:29]} Bc7 {[%emt 0:03:
48]} 12. Qf3 {[%emt 0:00:14]} Be6 {[%emt 0:04:22]} 13. Ne3 {[%emt 0:00:34]} Qd7
$146 {[%emt 0:01:58]} (13... Bxb3 14. axb3 g6 15. d4 Kf8 16. dxe5 dxe5 17. Rd1
Qe7 18. Ng4 Nxg4 19. Qxg4 h5 20. Qh3 Rd8 21. Be3 {1/2-1/2 (21) Movsesian,S 
(2705)-Balogh,C (2668) Sibenik 2012}) 14. d4 {[%emt 0:03:28]} Bg4 {[%emt 0:07:
04]} 15. Qg3 $14 {[%emt 0:02:19][%csl Gg3,Rg4,Rg7] Another slow Spanish, but
this time the Mongolian player's bishop on g4 proved to be a static weakness
as it could not easily go home. Kosteniuk exploited this to the fullest of
extents, eventually Black was unable to hold her position together because of
this bishop and the extra material was sufficient for White to take the full
point eventually.} O-O {[%emt 0:24:20]} 16. f4 {[%emt 0:15:10]} h5 {[%emt 0:13:
08]} 17. Bc2 {[%emt 0:02:26]} Rfe8 {[%emt 0:17:23]} 18. fxe5 {[%emt 0:02:02]}
dxe5 {[%emt 0:00:38]} 19. d5 {[%emt 0:00:22]} Qd6 {[%emt 0:05:27]} 20. Nxg4 {
[%emt 0:15:16]} hxg4 {[%emt 0:00:36]} 21. Bg5 {[%emt 0:01:30]} Nh7 {[%emt 0:00:
54]} 22. Bh4 {[%emt 0:02:33]} g5 {[%emt 0:02:47]} 23. Qxg4 {[%emt 0:00:26]} Qg6
{[%emt 0:00:01]} 24. Bf2 {[%emt 0:11:09]} cxd5 {[%emt 0:00:10]} 25. Qe2 {
[%emt 0:00:56]} Nf6 {[%emt 0:01:03]} 26. exd5 {[%emt 0:01:55]} e4 {[%emt 0:00:
04]} 27. Rad1 {[%emt 0:02:25]} Rad8 {[%emt 0:00:36]} 28. c4 {[%emt 0:05:46]}
Qh6 {[%emt 0:00:08]} 29. g3 {[%emt 0:02:54]} e3 {[%emt 0:00:29]} 30. Be1 {
[%emt 0:00:05]} Be5 {[%emt 0:00:56]} 31. Ba4 {[%emt 0:04:13]} Re7 {[%emt 0:00:
35]} 32. Bb4 {[%emt 0:01:01]} Bd6 {[%emt 0:00:50]} 33. c5 {[%emt 0:00:15]} Re4
{[%emt 0:00:56]} 34. Bc3 {[%emt 0:00:24]} Be5 {[%emt 0:00:50]} 35. Bc2 {
[%emt 0:01:01]} Bxc3 {[%emt 0:00:54]} 36. Bxe4 {[%emt 0:00:18]} Bb4 {[%emt 0:
01:08]} 37. Bf3 {[%emt 0:08:11]} Bxc5 {[%emt 0:00:11]} 38. b4 {[%emt 0:00:10]}
Bxb4 {[%emt 0:01:31]} 39. Qxe3 {[%emt 0:00:21]} b6 {[%emt 0:00:51]} 40. Rc1 {
[%emt 0:00:00]} Re8 {[%emt 0:00:00]} 41. Qd4 {[%emt 0:17:54]} Bd6 {[%emt 0:07:
33]} 42. Rc6 {[%emt 0:00:42]} Nd7 {[%emt 0:02:01]} 43. Qa4 {[%emt 0:05:01]} Re3
{[%emt 0:17:17]} 44. Rc8+ {[%emt 0:01:43]} Nf8 {[%emt 0:00:11]} 45. Qxa7 {
[%emt 0:06:01]} Be5 {[%emt 0:06:26]} 46. Bg4 {[%emt 0:03:50]} Qh7 {[%emt 0:00:
44]} 47. Qe7 {[%emt 0:00:54]} 1-0

[Event "Khanty-Mansiysk FIDE GP (Women)"]
[Site "Khanty-Mansiysk"]
[Date "2014.04.14"]
[Round "5"]
[White "Zhao, Xue"]
[Black "Kosteniuk, Alexandra"]
[Result "1/2-1/2"]
[ECO "A13"]
[WhiteElo "2552"]
[BlackElo "2527"]
[Annotator "ChessBase Website"]
[PlyCount "85"]
[EventDate "2014.04.09"]
[EventType "tourn"]
[EventRounds "11"]
[EventCountry "RUS"]
[EventCategory "10"]
[SourceTitle "CBM 160"]
[Source "ChessBase"]
[SourceDate "2014.05.15"]
[SourceVersion "1"]
[SourceVersionDate "2014.05.15"]
[SourceQuality "1"]
[TimeControl "40/5400+30:1800+30"]
[WhiteClock "1:30:00"]
[BlackClock "1:30:00"]

1. Nf3 {[%emt 0:00:00]} d5 {[%emt 0:00:00]} 2. c4 {[%emt 0:00:00]} e6 {[%emt 0:
00:03]} 3. b3 {[%emt 0:00:00]} b6 {[%emt 0:01:15]} (3... Nf6 4. g3 Be7 5. Bg2
O-O 6. O-O c5 7. Bb2 Nc6 8. e3 b6 9. Nc3 dxc4 10. bxc4 Qd3 11. Ne1 Qd7 12. Qe2
Bb7 13. f4 Rfd8 14. Rd1 Nb4 15. d3 Bxg2 16. Nxg2 a6 17. a3 Nc6 18. g4 Ne8 19.
f5 Nd6 20. f6 Bxf6 21. Rxf6 gxf6 22. Nf4 Ne5 23. Nh5 Qe7 24. Rf1 Nd7 25. Qg2 h6
26. h4 Kf8 27. Qg3 Ke8 28. Qf4 Qf8 29. Nd5 exd5 30. Bxf6 Ne5 31. Qxe5+ Kd7 32.
Bg7 Re8 33. Nf6+ {Kramnik,V (2784)-Fridman,D (2629) Dortmund 2013 1-0}) 4. g3 {
[%emt 0:00:31]} Bb7 {[%emt 0:05:50]} 5. Bg2 {[%emt 0:00:30]} Be7 {[%emt 0:13:
01]} 6. cxd5 $146 {[%emt 0:05:40]} (6. Bb2 Bf6 7. Bxf6 Nxf6 8. cxd5 exd5 9. d4
O-O 10. O-O Nbd7 11. Nc3 Re8 12. Rc1 a6 13. e3 Rc8 14. Re1 c5 15. dxc5 bxc5 16.
Re2 Rc7 17. Rec2 Qa8 18. Na4 Qa7 19. Ne1 Rec8 20. Nd3 c4 21. Nb4 Qa8 22. Nd3
Bc6 23. Ndb2 cxb3 24. axb3 Qa7 25. Nc5 Nxc5 26. Rxc5 Bb5 27. Rxc7 Rxc7 28. Nd3
Rxc1 29. Nxc1 Qc5 30. Nd3 Bxd3 31. Qxd3 a5 32. Bf3 Kf8 33. Qa6 h5 34. h4 Kg8
35. Kg2 Kh7 {Ballmann,M (2305)-Blatny,P (2495) Lenk 1991 1/2-1/2 (64)}) 6...
Bxd5 {[%emt 0:02:37]} 7. Bb2 {[%emt 0:03:09]} Nf6 {[%emt 0:03:36]} 8. Nc3 {
[%emt 0:08:20]} Bb7 {[%emt 0:00:11]} 9. b4 {[%emt 0:01:38] In an unsual game,
Zhao Xue never moved her e or d pawns! She aggressively pushed forward on the
queenside, but Kosteniuk was able to defend quite well and the game was equal
throughout. It finished in a perpetual check after Zhao Xue sacrificed a
knight to force the draw.} O-O {[%emt 0:04:53]} 10. b5 {[%emt 0:01:25]} a6 {
[%emt 0:05:00]} 11. a4 {[%emt 0:00:08]} Nbd7 {[%emt 0:07:17]} 12. O-O {[%emt 0:
03:40]} axb5 {[%emt 0:06:40]} 13. axb5 {[%emt 0:00:10]} Rxa1 {[%emt 0:00:07]}
14. Bxa1 {[%emt 0:04:10]} Qa8 {[%emt 0:01:04]} 15. Qc2 {[%emt 0:06:28]} Ne5 {
[%emt 0:06:21]} 16. Nh4 {[%emt 0:00:55]} Bxg2 {[%emt 0:03:14]} 17. Nxg2 {
[%emt 0:00:04]} Rc8 {[%emt 0:03:26]} 18. Ne3 {[%emt 0:07:05]} Qb7 {[%emt 0:07:
25]} 19. Rb1 {[%emt 0:05:01]} h5 {[%emt 0:00:31]} 20. Ncd1 {[%emt 0:03:20]} Ng6
{[%emt 0:05:12]} 21. h4 {[%emt 0:02:38]} Ne8 {[%emt 0:00:34]} 22. Ng2 {[%emt 0:
06:21]} Bf6 {[%emt 0:01:17]} 23. Bc3 {[%emt 0:04:26]} Ra8 {[%emt 0:01:50]} 24.
Nge3 {[%emt 0:04:33]} Bxc3 {[%emt 0:01:49]} 25. Nxc3 {[%emt 0:00:21]} Nd6 {
[%emt 0:00:07]} 26. Qb3 {[%emt 0:02:45]} Ne5 {[%emt 0:03:41]} 27. Qb4 {[%emt 0:
02:26]} Ra7 {[%emt 0:01:28]} 28. Qd4 {[%emt 0:02:10]} Nd7 {[%emt 0:00:20]} 29.
Nc4 {[%emt 0:02:19]} Nxc4 {[%emt 0:00:11]} 30. Qxd7 {[%emt 0:01:39]} Qa8 {
[%emt 0:00:43]} 31. Qd4 {[%emt 0:04:38]} Nd6 {[%emt 0:00:41]} 32. Qe5 {[%emt 0:
05:14]} Ra1 {[%emt 0:00:32]} 33. Rxa1 {[%emt 0:00:20]} Qxa1+ {[%emt 0:00:03]}
34. Kg2 {[%emt 0:00:06]} Qb2 {[%emt 0:06:33]} 35. Qg5 {[%emt 0:05:05]} f6 {
[%emt 0:00:18]} 36. Qxh5 {[%emt 0:01:36]} Qxd2 {[%emt 0:00:15]} 37. Qf3 {
[%emt 0:00:07]} Nc4 {[%emt 0:02:14]} 38. Qc6 {[%emt 0:05:18]} Qxc3 {[%emt 0:00:
06]} 39. Qe8+ {[%emt 0:00:03]} Kh7 {[%emt 0:00:04]} 40. Qh5+ {[%emt 0:00:00]}
Kg8 {[%emt 0:00:00]} 41. Qe8+ {[%emt 0:00:08]} Kh7 {[%emt 0:00:06]} 42. Qh5+ {
[%emt 0:00:06]} Kg8 {[%emt 0:00:03]} 43. Qe8+ {[%emt 0:00:10]} 1/2-1/2

[Event "Khanty-Mansiysk FIDE GP (Women)"]
[Site "Khanty-Mansiysk"]
[Date "2014.04.15"]
[Round "6"]
[White "Kosteniuk, Alexandra"]
[Black "Dzagnidze, Nana"]
[Result "1-0"]
[ECO "B42"]
[WhiteElo "2527"]
[BlackElo "2550"]
[Annotator "ChessBase Website"]
[PlyCount "109"]
[EventDate "2014.04.09"]
[EventType "tourn"]
[EventRounds "11"]
[EventCountry "RUS"]
[EventCategory "10"]
[SourceTitle "CBM 160"]
[Source "ChessBase"]
[SourceDate "2014.05.15"]
[SourceVersion "1"]
[SourceVersionDate "2014.05.15"]
[SourceQuality "1"]
[TimeControl "40/5400+30:1800+30"]
[WhiteClock "1:30:00"]
[BlackClock "1:30:00"]

1. e4 {[%emt 0:00:00]} c5 {[%emt 0:00:00]} 2. Nf3 {[%emt 0:00:00]} e6 {[%emt 0:
00:00]} 3. d4 {[%emt 0:00:00]} cxd4 {[%emt 0:00:00]} 4. Nxd4 {[%emt 0:00:00]}
a6 {[%emt 0:00:00]} 5. Bd3 {[%emt 0:00:25]} Nf6 {[%emt 0:00:34]} 6. O-O {
[%emt 0:00:45]} Qc7 {[%emt 0:01:51]} 7. Qe2 {[%emt 0:00:58]} d6 {[%emt 0:00:36]
} 8. c4 {[%emt 0:01:00]} g6 {[%emt 0:01:38]} 9. Nc3 {[%emt 0:00:40]} Bg7 {
[%emt 0:00:09]} 10. Nf3 {[%emt 0:00:36]} O-O {[%emt 0:00:21]} 11. Rd1 {[%emt 0:
00:36]} Nc6 {[%emt 0:03:47]} 12. h3 {[%emt 0:01:06]} Nd7 {[%emt 0:02:10]} 13.
Be3 {[%emt 0:00:45]} (13. Bf4 Nde5 14. Rac1 Bd7 15. b3 Rac8 16. Bb1 Nxf3+ 17.
Qxf3 Nd4 18. Qd3 Bc6 19. Be3 e5 20. Bxd4 exd4 21. Ne2 Rce8 22. f3 f5 23. exf5
Re3 24. Qd2 Bxf3 25. gxf3 Rxf3 26. Nxd4 Rxh3 27. Qg2 Rh5 28. Ne6 Qe7 29. Rf1
Be5 30. Rf3 Rf6 31. Rh3 Rxh3 32. Qxh3 gxf5 33. Bxf5 Qf7 34. Rf1 Kh8 35. Kh1 b5
36. Ng5 Qb7+ 37. Be4 Rxf1+ 38. Qxf1 Qe7 39. Qf5 Bf6 40. Qxh7+ Qxh7+ 41. Nxh7
Be7 42. Kg2 bxc4 {Hou,Y (2629)-Dzagnidze,N (2557) Beijing 2013 1-0}) 13... b6 {
[%emt 0:01:49]} 14. Rac1 {[%emt 0:01:11]} Bb7 {[%emt 0:01:44]} 15. Qd2 {
[%emt 0:06:07]} Nc5 {[%emt 0:10:48]} 16. Bb1 {[%emt 0:06:52]} Rad8 {[%emt 0:05:
39]} 17. b3 {[%emt 0:08:21]} f5 {[%emt 0:18:27] Dzagnidze essayed the Kan
Sicilian again, and Kosteniuk also used a Maroczy type system against her,
more or less how Hou Yifan did it to beat the Georgian player in an earlier
round. Dzagnidze's f5 pawn break was maybe too abrupt and the opening of
diagonals and files seemed to favor Kosteniuk. The game became double-edged in
time pressure, and both players blundered. However it was the Russian that
emerged up a pawn and with good technique she finished the game off.} 18. exf5
{[%emt 0:24:38]} gxf5 $146 {[%emt 0:00:53]} (18... Ne5 19. Nd4 gxf5 20. f4 Nc6
21. Nf3 Rf6 22. Qe2 Qf7 23. Rd2 h6 24. Qd1 Qe7 25. a3 a5 26. Nb5 d5 27. cxd5
exd5 28. Bf2 Rf7 29. Nbd4 Nxd4 30. Nxd4 Ne4 31. Re2 Qxa3 32. Nxf5 Rxf5 33. Bxe4
Rxf4 34. Bxb6 Bd4+ 35. Bxd4 dxe4 36. Rc7 Qd6 37. Rg7+ Kf8 38. Rd2 Rf5 39. Rxb7
Rd5 40. Qf1+ {1-0 (40) Groetz,H (2355)-Braun,P (2237) Salzburg 2004}) 19. Bf4 {
[%emt 0:00:27]} Ne5 {[%emt 0:02:11]} 20. Nd4 {[%emt 0:00:48]} Ng6 {[%emt 0:00:
15]} 21. Bg5 {[%emt 0:02:23]} Rde8 {[%emt 0:02:49]} 22. b4 {[%emt 0:05:21]} Nd7
{[%emt 0:05:17]} 23. Nce2 {[%emt 0:12:59]} Nde5 {[%emt 0:13:38]} 24. a3 {
[%emt 0:00:36]} Kh8 {[%emt 0:06:16]} 25. Ba2 {[%emt 0:02:27]} Nf7 {[%emt 0:00:
38]} 26. c5 {[%emt 0:03:47]} dxc5 {[%emt 0:05:47]} 27. bxc5 {[%emt 0:02:26]}
bxc5 {[%emt 0:00:07]} 28. Bf4 {[%emt 0:00:52]} Nxf4 {[%emt 0:04:37]} 29. Nxf4 {
[%emt 0:00:06]} Bh6 {[%emt 0:06:44]} 30. Ndxe6 {[%emt 0:03:14]} Rxe6 {[%emt 0:
01:32]} 31. Nxe6 {[%emt 0:04:22]} Bxd2 {[%emt 0:02:55]} 32. Nxc7 {[%emt 0:00:
05]} Bxc1 {[%emt 0:00:02]} 33. Rxc1 {[%emt 0:00:06]} Nd6 {[%emt 0:00:11]} 34.
Rxc5 {[%emt 0:00:35]} f4 {[%emt 0:00:07]} 35. Ne6 {[%emt 0:02:17]} Rf6 {
[%emt 0:00:29]} 36. Rc7 {[%emt 0:00:27]} Be4 {[%emt 0:02:05]} 37. Rd7 {[%emt 0:
01:25]} Ne8 {[%emt 0:00:44]} 38. Rd8 {[%emt 0:03:44]} Bg6 {[%emt 0:00:50]} 39.
Nc7 {[%emt 0:02:45]} Rd6 {[%emt 0:00:15]} 40. Ra8 {[%emt 0:00:00]} Rd1+ {
[%emt 0:00:00]} 41. Kh2 {[%emt 0:01:42]} Rd2 {[%emt 0:01:46]} 42. Bc4 {[%emt 0:
05:53]} Rxf2 {[%emt 0:04:39]} 43. Kg1 {[%emt 0:01:22]} Rc2 {[%emt 0:00:48]} 44.
Nxe8 {[%emt 0:00:30]} Be4 {[%emt 0:00:02]} 45. Rd8 {[%emt 0:02:35]} Rxg2+ {
[%emt 0:00:35]} 46. Kf1 {[%emt 0:00:04]} Rc2 {[%emt 0:00:07]} 47. Bb3 {[%emt 0:
07:13]} Rb2 {[%emt 0:02:23]} 48. Nd6+ {[%emt 0:00:18]} Kg7 {[%emt 0:00:02]} 49.
Rg8+ {[%emt 0:00:06]} Kh6 {[%emt 0:00:34]} 50. Nf7+ {[%emt 0:02:00]} Kh5 {
[%emt 0:00:01]} 51. Bd1+ {[%emt 0:00:14]} f3 {[%emt 0:01:40]} 52. Rg5+ {
[%emt 0:00:37]} Kh4 {[%emt 0:00:02]} 53. Rg4+ {[%emt 0:00:20]} Kxh3 {[%emt 0:
00:12]} 54. Rxe4 {[%emt 0:00:24]} Kg3 {[%emt 0:02:32]} 55. Nh6 {[%emt 0:01:49]}
1-0